Cogmind - Beta 14 @@@ ROGUE MODE // 2024.08.22 @ 23:19:11 Player: cabin Result: Destroyed by G-47 Trooper with Particle Gun Performance ------------- Evolutions (2) 1000 Regions Visited (4) 800 Robots Destroyed (28) 140 Value Destroyed (890) 890 Prototype IDs (2) 40 Alien Tech Used (0) 0 Bonus (0) 0 TOTAL SCORE: 2870 Bonus ------- None Cogmind --------- Core Integrity 0/550 Matter 189/500 Energy 150/150 System Corruption 0% Temperature Cool (36) Movement Walking (190) Ox1 Location -8/Materials Parts ------- > --- POWER (3) -------- Light Angular Momentum Engine > --- PROPULSION (3) --- Aluminum Leg Aluminum Leg > --- UTILITY (2) ------ High-capacity Matter Pod Trap Extractor (0/4) > --- WEAPON (3) ------- Particle Gun Assault Cannon Improved Datajack > --- INVENTORY (5) ---- Wheel Particle Gun Light Assault Rifle Autogun Welding Torch Peak State ------------ > --- POWER ------------ Ion Engine Improved Ion Engine > --- PROPULSION ------- Light Treads Airjet Cesium-ion Thruster > --- UTILITY ---------- Trap Extractor Trap Extractor > --- WEAPON ----------- Heavy EM Shotgun Field Laser Advanced Beam Cannon > --- INVENTORY -------- Wheel Particle Gun Light Assault Rifle Autogun Welding Torch [Rating: 24] Favorites ----------- Power Improved Ion Engine Engine Improved Ion Engine Propulsion Light Treads Treads Light Treads Leg Aluminum Leg Wheel Compact Wheel Hover Unit Airjet Flight Unit Cesium-ion Thruster Utility Trap Extractor Device Trap Extractor Storage Small Matter Pod Processor Terrain Scan Processor Protection Medium Armor Plating Weapon Advanced Beam Cannon Energy Gun Particle Gun Energy Cannon Advanced Beam Cannon Ballistic Gun Assault Rifle Ballistic Cannon Assault Cannon Launcher Rocket Launcher Special Weapon Welding Torch Special Melee Weapon Improved Datajack Build | -11 -10 -9 -9 -8 ------- Run | Yrd Mat Mat Min Mat Slots Evolved 4 | . . 2 . 2 Power 2 | . . 2 . . Propulsion 1 | . . . . 1 Utility . | . . . . . Weapon 1 | . . . . 1 Parts Attached 42 | 5 6 15 2 14 Power 7 | 1 2 2 1 1 Engine 7 | 1 2 2 1 1 Core . | . . . . . Reactor . | . . . . . Propulsion 10 | 2 . 4 . 4 Treads 2 | . . 2 . . Leg 2 | . . . . 2 Wheel 3 | 2 . 1 . . Hover 1 | . . . . 1 Flight 2 | . . 1 . 1 Utility 8 | . 2 3 . 3 Device 3 | . . 3 . . Storage 3 | . 1 . . 2 Processor 1 | . 1 . . . Hackware . | . . . . . Protection 1 | . . . . 1 Artifact . | . . . . . Weapon 17 | 2 2 6 1 6 Energy Gun 7 | 1 . 2 . 4 Energy Cannon 2 | . . 2 . . Ballistic Gun 4 | 1 1 2 . . Ballistic Cannon 1 | . . . . 1 Launcher 1 | . . . 1 . Special Weapon 1 | . 1 . . . Impact Weapon . | . . . . . Slashing Weapon . | . . . . . Piercing Weapon . | . . . . . Special Melee Weapon 1 | . . . . 1 Unidentified Prototypes 2 | . . 1 . 1 Parts Lost 16 | . . 5 . 11 Power 3 | . . 1 . 2 Propulsion 4 | . . 1 . 3 Utility 3 | . . 1 . 2 Weapon 6 | . . 2 . 4 Highest Loss Streak 10 | . . 5 . 10 To Critical Strikes . | . . . . . Average Slot Usage (%) 70 | . 85 65 86 67 Engine 11 | . 14 9 22 11 Treads 5 | . . 6 22 5 Leg 2 | . . . . 5 Wheel 7 | . 28 12 . . Hover 1 | . . . . 3 Flight 2 | . . 1 . 4 Device 10 | . . 8 22 14 Storage 4 | . 12 7 . 1 Energy Gun 5 | . 8 4 9 5 Energy Cannon 5 | . . 9 11 4 Ballistic Gun 3 | . 15 4 . . Ballistic Cannon 1 | . . . . 3 Launcher 2 | . . . . 4 Peak Build Rating 24 | 5 8 14 14 24 Average Rating 12 | 3 6 9 13 16 On Entrance 8 | . 5 8 13 14 Naked Turns . | . . . . . Heaviest Build 27 | 9 10 19 24 27 Greatest Support 40 | 26 26 40 40 40 Greatest Overweight (x) 4 | . . 2 . 4 Average Overweight (x) . | . . . . 1 Largest Inventory Capacity 5 | 5 5 5 5 5 Average Capacity 5 | 5 5 5 5 5 Most Carried 5 | . 2 5 5 5 Average Carried 4 | . . 4 4 5 Final Capacity 5 | 5 5 5 5 5 Final Carried 5 | . 2 5 5 5 Class Distribution -------------------- 59% | Mutant 30% | Scavenger-Mutant 9% | Gunner Dominant Class ---------------- Mutant | -10/Materials Mutant | -9/Materials Scavenger-Mutant | -9/Mines Mutant | -8/Materials Resources | -11 -10 -9 -9 -8 ----------- Run | Yrd Mat Mat Min Mat Matter Collected 666 | 105 16 348 77 120 Remotely 202 | . . 202 . . Salvage Created 1022 | . 151 428 84 359 Parts 62 | . 19 25 1 17 Haulers Intercepted . | . . . . . Recyclers Shooed . | . . . . . Parts Field Recycled . | . . . . . Retrieved Matter . | . . . . . Parts Self-Destructed . | . . . . . Prevented . | . . . . . Kills | -11 -10 -9 -9 -8 ------- Run | Yrd Mat Mat Min Mat Combat Hostiles Destroyed 22 | . 5 8 . 9 Guns 6 | . 5 1 . . Cannons 10 | . . 7 . 3 AOE 6 | . . . . 6 Classes Destroyed 6 | . 3 2 . 1 Builder 3 | . 2 1 . . Recycler 2 | . . 1 1 . Operator 1 | . . . . 1 Swarmer 4 | . 3 1 . . Grunt 16 | . 2 5 . 9 Sentry 2 | . . 2 . . Best Kill Streak 4 | . 3 4 1 3 Combat Bots Only 4 | . 3 4 . 3 Max Kills in Single Turn 2 | . 2 1 1 2 Gunslinging . | . . . . . Exploded 2 | . . . . 2 Melee . | . . . . . Uniques/NPCs Destroyed . | . . . . . Combat | -11 -10 -9 -9 -8 -------- Run | Yrd Mat Mat Min Mat Hostile Shots Fired 276 | . 45 106 . 125 Missed 78 | . 12 30 . 36 Damage Taken 2576 | . 323 693 . 1560 Core 815 | . 55 205 . 555 Absorbed by Shields . | . . . . . Regen/Repaired (Parts) 29 | . . 29 . . Core Remaining (%) 75 | 100 78 . 48 . Volleys Fired 76 | . 20 25 3 28 Largest 3 | . 2 2 2 3 Hottest 164 | . 60 136 133 164 Shots Fired 136 | . 37 45 6 48 Gun 77 | . 37 22 3 15 Cannon 52 | . . 23 3 26 Launcher 7 | . . . . 7 Special . | . . . . . Kinetic 53 | . 27 12 . 14 Thermal 55 | . . 23 6 26 Explosive 7 | . . . . 7 Electromagnetic 21 | . 10 10 . 1 Robot Hit Streak 18 | . 6 16 18 7 Robot Miss Streak 5 | . 4 5 1 4 Penetration Max . | . . . . . Secondary Targets 1 | . 1 . . . Max Gunslinging Chain 1 | . 1 . . . Shots Hit Robots 78 | . 18 27 4 29 Core Hits 43 | . 9 12 1 21 Critical Kills . | . . . . . Critical Parts Destroyed . | . . . . . Critical Strikes 1 | . . . . 1 Burn 1 | . . . . 1 Melee Attacks 1 | . . . . 1 Impact . | . . . . . Slashing . | . . . . . Piercing . | . . . . . Sneak Attacks . | . . . . . Combat Hostiles . | . . . . . Follow-up Attacks . | . . . . . Damage Inflicted 1887 | . 212 575 69 1031 Guns 601 | . 212 207 28 154 Cannons 791 | . . 368 41 382 Explosions 490 | . . . . 490 Melee . | . . . . . Ramming 5 | . . . . 5 Kinetic 470 | . 180 91 . 199 Thermal 756 | . . 368 69 319 Explosive 490 | . . . . 490 Electromagnetic 166 | . 32 116 . 18 Impact . | . . . . . Slashing . | . . . . . Piercing . | . . . . . Highest Corruption . | . . . . . Average Corruption . | . . . . . Corruption Purged . | . . . . . Corruption Blocked . | . . . . . Overload Shots . | . . . . . Overflow Damage 14 | . . 1 . 13 Projectiles 10 | . . 1 . 9 Explosions 4 | . . . . 4 Melee . | . . . . . Knockbacks 1 | . . . . 1 Impact . | . . . . . Kinetic 1 | . . . . 1 Secondary . | . . . . . Self-Inflicted Damage 72 | . . . . 72 Shots 3 | . . . . 3 Rammed 3 | . . . . 3 Targets Rammed 3 | . . . . 3 Kicked . | . . . . . Crushed . | . . . . . Highest Temperature 497 | . 9 318 162 497 Average Temperature 131 | . 6 116 68 159 Received Heat Transfer 1077 | . 87 99 . 891 Effects 8 | . . 1 . 7 Shutdowns 2 | . . . . 2 Energy Bleed 2 | . . 1 . 1 Interference 1 | . . . . 1 Damage (major) 3 | . . . . 3 Siege Activations . | . . . . . Robots Corrupted . | . . . . . Combat Hostiles . | . . . . . Parts Fried . | . . . . . Impact Corruptions . | . . . . . Robots Melted . | . . . . . Combat Hostiles . | . . . . . Parts Melted 1 | . . 1 . . Heat Transferred 1517 | . . 666 148 703 Parts Sabotaged . | . . . . . Parts Stolen . | . . . . . Parts Stripped . | . . . . . Power Chain Reactions . | . . . . . Alert | -11 -10 -9 -9 -8 ------- Run | Yrd Mat Mat Min Mat Peak Influence 303 | . 142 303 44 277 Initial 59 | . . 59 39 16 Average 113 | . 70 185 42 99 Maximum Alert Level 1 | . . 1 . 1 Low Security (%) 79 | 100 100 55 100 83 Level 1 20 | . . 44 . 16 Level 2 . | . . . . . Level 3 . | . . . . . Level 4 . | . . . . . Level 5 . | . . . . . High Security . | . . . . . Max Security . | . . . . . Squads Dispatched 3 | . . . . 3 Investigation 2 | . . . . 2 Extermination . | . . . . . Reinforcement 1 | . . . . 1 Assault . | . . . . . Garrison . | . . . . . Intercept . | . . . . . Searches Triggered . | . . . . . Construction Impeded . | . . . . . Haulers Reinforced . | . . . . . Active Scanning Responses . | . . . . . Cargo Convoy Interrupts . | . . . . . Stealth | -11 -10 -9 -9 -8 --------- Run | Yrd Mat Mat Min Mat Distress Signals 4 | . 1 . . 3 Communications Jammed . | . . . . . Distress Signals . | . . . . . Times Spotted 38 | . 9 11 . 18 Peak Tracking Total 5 | . 4 5 . 5 Tactical Retreats 1 | . . 1 . . Traps | -11 -10 -9 -9 -8 ------- Run | Yrd Mat Mat Min Mat Traps Triggered . | . . . . . Indirectly . | . . . . . Trap Hack Attempts . | . . . . . Triggered . | . . . . . Disarmed 4 | . 4 . . . Reprogrammed . | . . . . . Reused . | . . . . . Traps Extracted . | . . . . . Installed . | . . . . . Triggered . | . . . . . Machines | -11 -10 -9 -9 -8 ---------- Run | Yrd Mat Mat Min Mat Machines Disabled 4 | . 1 . . 3 Max in Single Turn 2 | . 1 . . 2 Machines Repaired . | . . . . . Machines Dismantled . | . . . . . Machines Sabotaged . | . . . . . Overloaded Fab Kills . | . . . . . Hacking | -11 -10 -9 -9 -8 --------- Run | Yrd Mat Mat Min Mat Machines Accessed 6 | . 1 2 . 3 Terminals 5 | . 1 1 . 3 Fabricators . | . . . . . Repair Stations 1 | . . 1 . . Recycling Units . | . . . . . Scanalyzers . | . . . . . Garrison Access . | . . . . . Total Hacks 17 | . 3 5 . 9 Successful 6 | . 2 3 . 1 Failed 11 | . 1 2 . 8 Catastrophic 5 | . . . . 5 Database Lockouts . | . . . . . Manual 8 | . 2 . . 6 Terminals 14 | . 3 2 . 9 Fabricators . | . . . . . Repair Stations 3 | . . 3 . . Recycling Units . | . . . . . Scanalyzers . | . . . . . Garrison Access . | . . . . . Terminal Hacks 4 | . 2 1 . 1 Part Schematic 1 | . 1 . . . Alert Level 2 | . . 1 . 1 Disarm Traps 1 | . 1 . . . Fabricator Hacks . | . . . . . Repair Station Hacks 2 | . . 2 . . Scan Component 1 | . . 1 . . Repair 1 | . . 1 . . Recycling Unit Hacks . | . . . . . Scanalyzer . | . . . . . Garrison Access Hacks . | . . . . . Unauthorized Hacks . | . . . . . Terminals . | . . . . . Fabricators . | . . . . . Repair Stations . | . . . . . Recycling Units . | . . . . . Scanalyzers . | . . . . . Garrison Access . | . . . . . Data Cores Recovered 1 | . . . . 1 Used 1 | . . . . 1 Hacking Detections 5 | . 1 1 . 3 Full Trace Events 3 | . . . . 3 Feedback Events . | . . . . . Feedback Blocked . | . . . . . Robot Schematics Acquired . | . . . . . Robots Built . | . . . . . Authchips . | . . . . . Time . | . . . . . Total Robot Build Rating . | . . . . . Part Schematics Acquired 1 | . 1 . . . Parts Built . | . . . . . Authchips . | . . . . . Time . | . . . . . Total Part Build Rating . | . . . . . Parts Repaired 1 | . . 1 . . Time 26 | . . 26 . . Parts Recycled . | . . . . . Recycled Matter . | . . . . . Retrieved Matter . | . . . . . Retrieved Components . | . . . . . Parts Scanalyzed . | . . . . . Part Schematics Acquired . | . . . . . Parts Damaged . | . . . . . Bothacking | -11 -10 -9 -9 -8 ------------ Run | Yrd Mat Mat Min Mat Used RIF Installer . | . . . . . Robots Hacked . | . . . . . Non-combat . | . . . . . Combat . | . . . . . Robot Hacks Applied . | . . . . . Relay Couplers Released . | . . . . . Fabnet Peak Effective % . | . . . . . Robots Rewired . | . . . . . Allies Hacked . | . . . . . Hacks Repelled . | . . . . . Allies | -11 -10 -9 -9 -8 -------- Run | Yrd Mat Mat Min Mat Total Allies . | . . . . . Largest Group . | . . . . . Highest-Rated Group . | . . . . . Highest-Rated Ally . | . . . . . Total Orders . | . . . . . Ally Attacks . | . . . . . Total Damage . | . . . . . Kills . | . . . . . Allies Corrupted . | . . . . . Allies Melted . | . . . . . Intel | -11 -10 -9 -9 -8 ------- Run | Yrd Mat Mat Min Mat Robot Analysis Total . | . . . . . Derelict Logs Recovered . | . . . . . Drone Launches . | . . . . . Drone Recoveries . | . . . . . Exploration | -11 -10 -9 -9 -8 ------------- Run | Yrd Mat Mat Min Mat Turns Passed 1381 | 57 188 401 72 663 Spaces Moved 804 | 55 131 251 38 329 Core 66 | 1 . 5 . 60 Treads 114 | . . 64 38 12 Legs 140 | . . . . 140 Wheels 351 | 54 131 166 . . Hover 107 | . . . . 107 Flight 26 | . . 16 . 10 Fastest Speed 50 | 50 90 90 160 50 Average Speed 136 | 89 90 120 160 171 Slowest Speed 395 | 100 90 205 160 395 Overloaded Moves . | . . . . . Propulsion Burnouts . | . . . . . Robots Hopped . | . . . . . Cave-ins Triggered . | . . . . . Exploration Rate (%) 16 | 3 31 18 8 21 Regions Visited 4 Branch Regions 1 Pre-discovered Areas . | . . . . . Known Exits Taken . | . . . . . Unknown Exits Taken 4 | 1 1 1 1 . Scrap Searched . | . . . . . Spaces Dug . | . . . . . Terrain Destroyed 75 | . . . . 75 Melee . | . . . . . Projectile 2 | . . . . 2 AOE 73 | . . . . 73 Terrain Rammed . | . . . . . Walls Destroyed . | . . . . . Machines Disabled . | . . . . . Actions | -11 -10 -9 -9 -8 --------- Run | Yrd Mat Mat Min Mat Total 946 | 59 165 302 43 377 Wait 7 | . 5 2 . . Move 800 | 54 130 250 37 329 Hop . | . . . . . Pick Up . | . . . . . Fast Attach 37 | 5 4 15 1 12 Attach 2 | . 1 . 1 . Detach 9 | . 3 5 1 . Swap 3 | . 1 . . 2 Drop 8 | . 1 5 . 2 Fire 76 | . 20 25 3 28 Melee 1 | . . . . 1 Ram 3 | . . . . 3 Kick . | . . . . . Crush . | . . . . . Escape Stasis . | . . . . . Rewire . | . . . . . Trap . | . . . . . Miscellaneous . | . . . . . Route ------- -11/Scrapyard -10/Materials -9/Materials -9/Mines -8/Materials History --------- Turn | Location | Event 37 | -11/Scrapyard | Discovered new exit (range 16) 58 | -11/Scrapyard | Entered Materials 223 | -10/Materials | Discovered new exit (range 16) 246 | -10/Materials | Entered another Materials area 246 | -9/Materials | Evolved 2 slots: Power x2 409 | -9/Materials | Repaired Lgt. Ion Engine 473 | -9/Materials | Lost 5 parts (1p1n1u2w) 542 | -9/Materials | Discovered new exit (range 15) 587 | -9/Materials | Core integrity fell below 50% 647 | -9/Materials | Entered Mines 666 | -9/Mines | Discovered new exit (range 8) 698 | -9/Mines | Received a Rocket Launcher from a helpful Derelict 719 | -9/Mines | Entered Materials 719 | -8/Materials | Evolved 2 slots: Propulsion x1, Weapon x1 1089 | -8/Materials | Core integrity fell below 50% 1122 | -8/Materials | Lost 10 parts (2p3n1u4w) 1134 | -8/Materials | Core integrity fell below 20% 1382 | -8/Materials | Destroyed by G-47 Trooper with Particle Gun Last Messages --------------- 01175_ K-01 Serf collects debris. 01178_ K-01 Serf cleans the Neutrino Reactor. 01182_ K-01 Serf collects debris. 01185_ Acquired Lgt. Angular Momentum Engine. 01186_ R-06 Scavenger collects Imp. Heat Sink. 01188_ K-01 Serf collects debris. 01189_ R-06 Scavenger collects Carbon-fiber Leg. 01189_ Acquired 43 matter. 01191_ K-01 Serf collects debris. 01202_ Terminal disabled. 01206_ K-01 Serf collects debris. 01245_ Acquired Imp. Datajack. 01273_ Acquired Sml. Matter Pod. 01301_ Dropped Sml. Matter Pod. 01362_ W-25 Informer sends out distress signal. 01363_ Destroyed Imp. Sensor Array. 01363_ W-25 Informer knocked back. 01381_ Jacked G-47 Trooper... 01381_ Command string: reboot_system 01382_ Critical hit (Burn: +37). Map ----- +----------------------------------------------------+ | ?????????????????????????????? | | ?????????????????????????????? | | ?????????????????????????????? | | ?????????????????????????????? | | ?????????????????????????????? | | ?????????????????????????????? | | ?????????????????????????????? | | ?????????????????????????????? | | ?????????????????????????????? | | ?????????????????????????????? | | ?????????????????????????????? | | ?????????????????????????????? | | ?????????????????????????????? | | ?????????????????????????????? | | ?????????????????????????????? | | ?????????????????????????????? | | ???????????????????##????????? | | ??????????????????? #???????? | | ???????????????????# #???????? | | ???????????????????# #???????? | | ?????????????###?### ###?????? | | ?????????????? # #?????? | | ??????????????? # ####??? | | ???????????????? + T #??? | | ?????????????????# ##g#??? | | ?????????????????# ?#@#??? | | ??????????????????# #?# #??? | | ??????????????????# ###g#### | | ??????????????????# / # | | ??????????????????# # # | | ???????????######## # """# | | ???????????# # # """# | | ???????????# # # ! """# | | ???????????# """ + # """# | | ???????????# """ # # """# | | ???????????# """ # # # | | ???????????# # # # | | ???????????######## #! # | | ??????????????????# # # | | ??????????????????# ######## | | ??????############# ###????? | | ??????# %%" #????? | | ??????# % # #????? | | ??????# # #????? | | ??????# """ + T #????? | | ??????# " """%# #????? | | ??????# "T """ # #????? | | ??????# "" ! # #????? | | ??????# % ## ##????? | | ??????############ #?????? | +----------------------------------------------------+ Best States ------------- Heat Dissipation 31 Energy Generation 18 Energy Capacity 415 Matter Stores 300 Matter Capacity 500 Sight Range 16 Terrain Scan Density 85 Armor Coverage 225 Evasion (%) 55 Recoil Reduction 2 Trap Extractor Capacity 8 Item Schematics ----------------- ECM Suite | -10/Materials | Hacked Robot Schematics ------------------ None Fabricated ------------ Nothing Alien Tech Used ----------------- None Achievements -------------- Dynamic Key Universal Adapter Use The Force Challenges ------------ None Game ------ Seed ArcBombardmentInitializer Manual? 0 Play Time 00:24:37 Cumulative 3.0 hours Start 2024.08.22 @ 22:39:56 End 2024.08.22 @ 23:19:11 Sessions 1 Manual Loads 0 Difficulty Rogue Special Mode None Game No. 11 Rogue 10 Adventurer 1 Explorer 0 Win Type - Total 0 Types 0/0/0/0/0/0/0/0/0 Lore% 1 Gallery% 7 Achievement% 8 Wizard Run 0 Options --------- Layout 2 ASCII 0 Keyboard 1 Movement Arrows Keybinds 0 Fullscreen 1 Font 24/Smallcaps Map View 50x44 Zoom Use 0% Tactical HUD 1 Map Filters NONE Filters NONE Steam 1 RUN: 63bf885a-6d89-4e65-8727-06e498c2f89e